bitfinex/quotes_ETHUSD_20250131
["timestamp","ask_amount","ask_price","bid_price","bid_amount"]
[1738288162557,0.03650375,3267.4,3267.3,0.28596827]
[1738288162765,3.06025,3267.7,3267.3,0.28596827]
[1738288162972,0.03650809,3267.4,3267.3,0.28596827]
[1738288163267,3.06025,3267.7,3267.3,0.28596827]
[1738288165344,3.0,3267.6,3267.4,0.28596827]
[1738288165548,6.06035,3267.6,3267.4,0.28596827]
[1738288167275,3.0601,3267.9,3267.1,0.8269]
[1738288167566,1.224708,3268.2,3267.9,3.05999]
[1738288167771,1.224708,3268.2,3268.0,4.02283]
[1738288168011,0.03824379,3268.7,3268.2,3.05976]
[1738288168720,0.03824379,3268.7,3268.0,4.02283]
[1738288168721,3.09762379,3268.7,3268.3,0.28623273]
[1738288168876,3.48871417,3268.7,3268.3,0.28623273]
[1738288170393,3.48871417,3268.7,3268.0,4.02283]
[1738288171422,3.09762379,3268.7,3268.0,4.02283]
[1738288171926,3.09762379,3268.7,3268.1,3.34570007]
[1738288172482,3.86218,3268.2,3268.1,0.28584007]
[1738288173183,6.86218,3268.2,3268.1,0.28584007]
[1738288173384,3.06016,3267.8,3267.7,0.28584007]
[1738288173598,3.8580141,3267.8,3267.7,0.28584007]
[1738288173794,6.8580141,3267.8,3267.7,0.28584007]
[1738288174003,6.81976,3267.8,3267.7,0.28584007]
[1738288175134,3.06045,3267.5,3267.1,0.28584007]
[1738288175502,3.06027,3267.7,3267.1,0.28584007]
[1738288175669,3.06049,3267.5,3267.1,0.28584007]
[1738288176463,3.06049,3267.5,3266.9,4.01219]
[1738288177718,3.06049,3267.5,3267.0,0.28581505]
[1738288179560,3.06049,3267.5,3267.1,0.28581505]
[1738288180015,3.88825,3267.3,3267.1,0.28581505]
[1738288181027,3.88825,3267.3,3266.9,0.28581505]
[1738288182065,3.06091,3267.0,3266.9,0.28581505]
[1738288182367,3.09917298,3267.0,3266.9,0.28581505]
[1738288183501,3.06102,3266.9,3266.4,5.37]
[1738288183800,3.06102,3266.9,3266.5,0.28581755]
[1738288184502,3.06091,3267.0,3266.5,0.28581755]
[1738288184865,3.0,3267.2,3266.5,0.28581755]
[1738288185091,6.06079,3267.2,3266.6,0.28581755]
[1738288185606,6.06079,3267.2,3266.5,3.06136]
[1738288186493,3.06083,3267.1,3266.6,0.28575101]
[1738288187896,3.06083,3267.1,3266.5,3.34710101]
[1738288188102,3.0,3267.4,3266.9,3.06097]
[1738288188326,5.35,3267.5,3266.9,3.06097]
[1738288188488,5.35,3267.5,3267.2,0.8223]
[1738288188672,3.06026,3267.7,3267.2,0.8223]
[1738288188872,1.30197894,3268.2,3267.2,0.8223]
[1738288189171,3.05989,3268.1,3267.3,3.06057]
[1738288189392,3.05997,3268.0,3267.3,3.06057]
[1738288190191,3.05997,3268.0,3267.4,3.06052]
[1738288191010,0.7883,3267.7,3267.2,1.10805101]
[1738288191214,3.06044,3267.5,3267.2,1.10805101]
[1738288191401,3.06044,3267.5,3267.2,0.28575101]
[1738288193082,3.06044,3267.5,3267.1,0.28575101]
[1738288196115,3.06044,3267.5,3267.0,1.05005101]
[1738288197736,3.0607,3267.3,3267.0,0.28575101]
[1738288197937,3.0608,3267.2,3267.0,0.28575101]
[1738288198864,3.0608,3267.2,3266.8,1.10545101]
[1738288199766,3.366634,3267.4,3266.8,1.10545101]
[1738288200065,3.06059,3267.4,3266.8,3.88077]
[1738288201260,3.0604,3267.6,3267.0,3.06085]
[1738288205486,3.78954355,3267.6,3266.8,3.88079]
[1738288205694,3.06059,3267.4,3266.8,0.8197]
[1738288205888,3.06069,3267.3,3266.8,0.8197]
[1738288206951,3.09894968,3267.3,3266.8,0.8197]
[1738288207285,3.0989503,3267.3,3266.8,0.8197]
[1738288207587,3.06069,3267.3,3266.8,0.8197]
[1738288207798,3.09895033,3267.3,3266.8,0.8197]
[1738288208214,3.06069,3267.3,3266.8,0.8197]
[1738288211270,3.06048,3267.5,3266.8,3.88079]
[1738288212289,3.06037,3267.6,3266.8,3.88079]
[1738288212498,3.06074,3267.2,3266.8,0.8197]
[1738288212870,0.8115,3267.1,3266.0,0.825]
[1738288213071,3.06154,3266.4,3266.0,0.825]
[1738288213325,3.06168,3266.2,3265.7,0.7702]
[1738288213510,3.06182,3266.1,3265.7,0.7702]
[1738288213910,3.10009279,3266.1,3265.7,0.7702]
[1738288214110,3.06182,3266.1,3265.7,0.7702]
[1738288215266,3.06182,3266.1,3265.6,0.2]
[1738288215565,4.44491644,3266.1,3265.5,0.9785]
[1738288216449,3.06186,3266.0,3265.4,3.26238]
[1738288216955,3.06186,3266.0,3265.4,0.2]
[1738288217164,3.0,3266.4,3265.8,0.8154]
[1738288217335,8.4112,3266.7,3266.0,3.06177]
[1738288218218,8.4112,3266.7,3266.1,3.06175]
[1738288218971,0.7569,3266.8,3266.3,3.06155]
[1738288219260,6.1042,3267.6,3266.8,3.06109]
[1738288219463,6.1042,3267.6,3266.4,0.7587]
[1738288219464,0.03825906,3267.5,3266.7,0.2]
[1738288219661,3.06081,3267.2,3266.7,0.2]
[1738288219862,3.0609,3267.1,3266.7,0.2]
[1738288220226,3.0609,3267.1,3266.4,3.8201]
[1738288220426,3.0609,3267.1,3266.5,0.2]
[1738288220626,3.0609,3267.1,3266.6,35.0]
[1738288221366,3.0,3267.3,3266.6,35.0]
[1738288221571,3.0,3267.3,3266.8,3.06102]
[1738288221768,0.64431257,3267.3,3266.4,0.7587]
[1738288222068,3.06111,3266.8,3266.4,0.9587]
[1738288222371,3.06111,3266.8,3266.4,35.9587]
[1738288223734,0.03826499,3266.9,3266.4,35.0]
[1738288224036,3.06113,3266.8,3266.3,0.2]
[1738288224434,3.06141,3266.5,3266.3,0.2]
[1738288224637,3.06141,3266.5,3266.2,5.37]
[1738288224986,3.06193,3266.0,3265.7,0.2]
[1738288225147,0.03826842,3266.4,3265.5,0.2]
[1738288225347,3.06163,3266.3,3265.6,3.06221]
[1738288225534,3.06163,3266.3,3265.7,35.0]
[1738288225965,3.06138,3266.5,3265.6,3.06221]
[1738288226186,0.8035,3266.6,3265.5,0.2]
[1738288226187,3.0,3266.6,3265.9,3.06187]
[1738288226581,3.0,3266.6,3265.8,0.8098]
[1738288226782,3.0,3266.6,3266.1,3.06166]
[1738288226983,3.0,3266.6,3266.2,3.06165]
[1738288227188,5.35,3266.7,3266.2,3.06165]
[1738288227479,3.06113,3266.8,3266.3,35.0]
[1738288228073,0.8112,3267.5,3266.4,1.3036]
[1738288228332,3.0,3267.3,3266.7,3.0611]
[1738288228469,3.06041,3267.6,3266.9,3.061]
[1738288228695,3.612067,3267.5,3267.0,35.0]
[1738288228843,3.612067,3267.5,3266.9,3.061]
[1738288229343,3.612067,3267.5,3267.0,35.0]
[1738288229760,3.0,3267.5,3267.0,35.0]
[1738288231404,3.0606,3267.4,3267.0,35.2]
[1738288232424,0.06854221,3267.3,3267.0,35.2]
[1738288232772,3.06047,3267.5,3267.0,35.2]
[1738288232973,0.06866174,3267.2,3267.0,35.2]
[1738288233211,3.06047,3267.5,3267.0,0.2]
[1738288233420,0.06865207,3267.1,3267.0,0.2]
[1738288233627,3.06047,3267.5,3267.0,0.2]
[1738288233786,0.06865207,3267.1,3267.0,0.2]
[1738288234125,3.06047,3267.5,3267.0,0.2]
[1738288234273,0.06865207,3267.1,3267.0,0.2]
[1738288234473,3.06047,3267.5,3267.0,0.2]
[1738288234786,0.06866201,3267.1,3267.0,0.2]
[1738288234998,3.06047,3267.5,3267.0,0.2]
[1738288235407,0.06869101,3267.4,3267.0,0.2]
[1738288241324,3.12923101,3267.4,3267.0,0.2]
[1738288244795,3.12923101,3267.4,3267.0,0.9988]
[1738288245776,3.12923101,3267.4,3267.0,35.9988]
[1738288246751,0.06869101,3267.4,3267.0,35.9988]
[1738288247088,6.0604,3267.6,3267.0,35.9988]
[1738288247261,0.06868405,3267.3,3267.0,35.9988]
[1738288247586,6.0604,3267.6,3267.0,35.9988]
[1738288247774,0.06867439,3267.2,3267.0,35.9988]
[1738288247990,6.0604,3267.6,3267.0,35.9988]
[1738288248157,0.06866472,3267.1,3267.0,35.9988]
[1738288248355,3.06045,3267.5,3267.0,35.9988]
[1738288248663,0.06873015,3267.4,3267.0,35.9988]
[1738288250290,0.06873015,3267.4,3267.0,0.9988]
[1738288251106,0.06873015,3267.4,3267.0,0.7988]
[1738288251253,3.12927015,3267.4,3267.0,0.2]
[1738288252852,3.06063,3267.3,3266.8,35.0]
[1738288253059,3.12571427,3267.3,3266.9,0.2]
[1738288253418,0.06508427,3267.3,3266.9,0.2]
[1738288253566,0.06508427,3267.3,3267.0,3.06089]
[1738288253768,3.06045,3267.5,3267.0,3.06089]
[1738288254101,0.06507679,3267.4,3267.0,3.06089]
[1738288254404,3.06045,3267.5,3266.9,0.2]
[1738288254611,0.8323,3267.3,3266.8,35.0]
[1738288254909,3.06081,3267.1,3266.4,0.2]
[1738288255054,3.06081,3267.1,3266.5,3.06137]
[1738288255255,0.06505799,3267.0,3266.6,35.0]
[1738288255473,3.06081,3267.1,3266.6,35.0]
[1738288255672,3.06081,3267.1,3266.6,0.8243]
[1738288255909,3.12596799,3267.0,3266.4,3.26139]
[1738288256261,3.12596799,3267.0,3266.4,38.26139]
[1738288256494,3.06091,3267.0,3266.4,38.26139]
[1738288257309,3.09917291,3267.0,3266.4,38.26139]
[1738288257764,3.06091,3267.0,3266.4,38.26139]
[1738288258106,0.06494568,3266.9,3266.4,38.26139]
[1738288258311,3.06091,3267.0,3266.4,38.26139]
[1738288258507,0.06493601,3266.8,3266.4,38.26139]
[1738288258681,3.06091,3267.0,3266.4,38.26139]
[1738288258881,0.0649257,3266.7,3266.4,38.26139]
[1738288259081,3.06091,3267.0,3266.4,38.26139]
[1738288259283,0.06491667,3266.6,3266.5,0.28663114]
[1738288259579,3.06084,3267.1,3266.5,3.34801114]
[1738288260013,0.06495471,3267.0,3266.5,38.34801114]
[1738288260515,0.06495471,3267.0,3266.7,3.06116]
[1738288260726,3.0,3267.2,3266.8,0.8233]
[1738288260898,0.7652,3267.6,3267.1,3.06079]
[1738288261211,1.682752,3267.6,3267.2,35.0]
[1738288261534,3.7652,3267.6,3267.1,3.06079]
[1738288262326,3.0,3267.6,3267.3,0.28663114]
[1738288262539,6.06035,3267.6,3267.3,0.28663114]
[1738288263461,6.06035,3267.6,3266.9,38.06096]
[1738288263462,3.0,3267.6,3266.9,38.06096]
[1738288263726,3.06084,3267.1,3266.6,5.37]
[1738288263930,3.06093,3267.0,3266.6,5.37]
[1738288264139,3.81582,3266.9,3266.6,5.37]
[1738288264348,3.06119,3266.7,3266.3,0.2]
[1738288265206,3.81582,3266.9,3266.3,0.2]
[1738288265888,0.06503803,3266.8,3266.3,0.2]
[1738288266089,0.06503803,3266.8,3266.4,0.28641864]
[1738288266899,3.12613803,3266.8,3266.4,0.28641864]
[1738288267427,3.12613803,3266.8,3266.5,0.28641864]
[1738288269028,3.12613803,3266.8,3266.6,0.28641864]
[1738288269683,0.06503803,3266.8,3266.6,0.28641864]
[1738288270228,0.06503803,3266.8,3266.7,3.06119]
[1738288270533,0.06486581,3266.8,3266.7,35.0]
[1738288270685,3.06093,3267.0,3266.6,0.28641864]
[1738288270885,0.06486581,3266.8,3266.7,0.28641864]
[1738288271124,3.06093,3267.0,3266.7,0.28641864]
[1738288271337,0.06486897,3266.8,3266.7,0.28641864]
[1738288271502,3.06093,3267.0,3266.7,0.28641864]
[1738288271823,0.06486897,3266.8,3266.7,0.28641864]
[1738288272140,6.83609,3266.8,3266.7,0.28641864]
[1738288272607,6.90095897,3266.8,3266.7,0.28641864]
[1738288272990,6.81119,3266.7,3266.6,0.28641864]
[1738288273553,6.87577106,3266.7,3266.6,0.28641864]
[1738288273761,7.86945717,3266.7,3266.6,0.28641864]
[1738288274639,3.06156,3266.4,3265.6,3.34857864]
[1738288274951,0.06454554,3266.3,3265.6,3.34857864]
[1738288275465,0.06454554,3266.3,3265.9,3.06193]
[1738288275951,0.06438077,3266.2,3265.9,3.06193]
[1738288276268,3.06138,3266.5,3266.0,0.28641864]
[1738288276716,0.06440012,3266.4,3266.0,0.28641864]
[1738288277560,0.06440012,3266.4,3265.9,3.06193]
[1738288277768,0.06440012,3266.4,3266.1,0.28597646]
[1738288278263,0.06440012,3266.4,3266.2,3.84375]
[1738288278672,3.06107,3266.9,3266.3,35.0]
[1738288278874,3.0611,3266.8,3266.3,35.0]
[1738288279023,6.0611,3266.8,3266.3,35.0]
[1738288280771,0.06445283,3266.7,3266.3,35.0]
[1738288280939,6.0611,3266.8,3266.4,0.28608375]
[1738288281165,0.06445883,3266.6,3266.4,0.28608375]
[1738288281343,6.0611,3266.8,3266.4,0.28608375]
[1738288281843,0.0644685,3266.7,3266.4,0.28608375]
[1738288282044,0.0644685,3266.7,3266.3,35.0]
[1738288282243,0.0644685,3266.7,3266.4,3.06138]
[1738288282439,3.06072,3267.2,3266.4,3.06138]
[1738288282873,3.06095,3267.0,3266.5,35.0]
[1738288283200,0.06448368,3266.9,3266.5,35.0]
[1738288283984,0.06448368,3266.9,3266.6,0.28611368]
[1738288285343,0.06448368,3266.9,3266.7,0.28611368]
[1738288286292,3.0,3267.1,3266.7,0.28611368]
[1738288286891,3.0,3267.1,3266.7,1.08541368]
[1738288287254,6.06083,3267.1,3266.8,0.28611368]
[1738288287680,0.06460928,3267.0,3266.8,0.28611368]
[1738288288581,0.06460928,3267.0,3266.7,0.7993]
[1738288288984,3.12558928,3267.0,3266.5,0.2]
[1738288289197,3.12558928,3267.0,3266.5,0.9528]
[1738288290320,3.12558928,3267.0,3266.5,4.01417]
[1738288290620,3.12558928,3267.0,3266.6,0.28613797]
[1738288290802,3.12558928,3267.0,3266.7,35.0]
[1738288291700,3.12558928,3267.0,3266.8,0.28613797]
[1738288291900,3.061,3266.9,3266.8,0.28613797]
[1738288292082,3.12572159,3266.9,3266.8,0.28613797]
[1738288292285,0.06472159,3266.9,3266.8,0.28613797]
[1738288295582,3.12572159,3266.9,3266.8,0.28613797]
[1738288301924,0.06472159,3266.9,3266.8,0.28613797]
[1738288302229,6.06084,3267.1,3266.8,0.28613797]
[1738288302428,0.0613604,3266.9,3266.8,0.28613797]
[1738288302593,6.06084,3267.1,3266.8,0.28613797]
[1738288302797,0.0613604,3266.9,3266.8,0.28613797]
[1738288303125,0.06134261,3266.9,3266.8,4.14832797]
[1738288303337,3.06064,3267.3,3266.8,39.14832797]
[1738288303476,0.06135316,3266.9,3266.8,39.14832797]
[1738288303816,3.0,3267.4,3266.8,39.14832797]
[1738288303995,6.06054,3267.4,3266.8,39.14832797]
[1738288304194,0.06141171,3267.3,3266.8,39.14832797]
[1738288305816,0.06141171,3267.3,3266.9,0.28613797]
[1738288307438,0.06141171,3267.3,3267.0,0.28613797]
[1738288309104,3.06044,3267.5,3267.1,0.28613797]
[1738288309309,3.1220143,3267.4,3267.1,0.28613797]
[1738288310239,0.0614843,3267.4,3267.1,3.34693797]
[1738288310437,0.0614843,3267.4,3267.2,0.7592]
[1738288310738,0.0615583,3267.3,3267.2,0.7592]
[1738288310934,6.06031,3267.7,3267.2,0.7592]
[1738288311123,3.06053,3267.4,3267.3,0.28613797]
[1738288311323,3.88683,3267.4,3267.3,0.28613797]
[1738288312714,3.06066,3267.3,3266.7,0.2]
[1738288313115,3.06066,3267.3,3266.7,35.2]
[1738288314043,3.06066,3267.3,3266.7,38.26118]
[1738288314340,3.06066,3267.3,3266.8,0.28657761]
[1738288315138,3.06066,3267.3,3266.9,35.0]
[1738288316043,3.06066,3267.3,3267.0,0.28657761]
[1738288316900,3.06081,3267.1,3267.0,0.28657761]
[1738288317099,6.93396568,3267.1,3267.0,0.28657761]
[1738288317335,3.0,3267.0,3266.1,5.57]
[1738288317505,3.06137,3266.6,3266.1,0.2]
[1738288317839,3.12274197,3266.5,3266.2,35.0]
[1738288318050,3.12274197,3266.5,3265.9,3.06187]
[1738288318051,3.06149,3266.4,3265.9,0.2]
[1738288318352,3.87329,3266.4,3265.9,0.2]
[1738288318657,0.06132263,3266.3,3265.9,35.2]
[1738288319148,3.87329,3266.4,3265.9,35.2]
[1738288319923,0.06132263,3266.3,3265.9,35.2]
[1738288320127,0.06132263,3266.3,3265.9,35.0]
[1738288320452,3.06161,3266.3,3265.9,35.0]
[1738288320655,3.06184,3266.0,3265.9,35.0]
[1738288321244,3.0,3266.1,3265.3,3.26247]
[1738288321426,0.06113492,3266.0,3265.6,0.55]
[1738288321842,3.0,3266.5,3265.7,3.06205]
[1738288322014,3.0,3266.5,3265.9,3.06187]
[1738288323316,3.0,3266.5,3266.0,2.8260238]
[1738288323520,3.06113,3266.8,3266.2,3.06165]
[1738288323934,3.06119,3266.7,3266.1,0.55]
[1738288324275,3.85826,3266.4,3266.0,2.8260238]
[1738288324713,3.06175,3266.1,3266.0,1.31753812]
[1738288325550,3.06175,3266.1,3265.8,0.47736889]
[1738288325976,3.06157,3266.3,3265.8,0.47736889]
[1738288326119,0.06110771,3266.2,3266.0,1.50733954]
[1738288326490,6.1232,3266.3,3266.0,1.50733954]
[1738288326623,0.06109804,3266.1,3266.0,1.50733954]
[1738288327318,3.06157,3266.3,3266.0,1.03033336]
[1738288327519,0.06109804,3266.1,3266.0,1.03033336]
[1738288328576,3.06175,3266.1,3266.0,1.03033336]
[1738288328776,4.24251484,3266.1,3266.0,2.34585154]
[1738288329265,0.06109804,3266.1,3266.0,6.74369154]
[1738288329770,3.89291,3267.1,3266.4,0.786]
[1738288330000,0.06078734,3267.0,3266.4,3.84745]
[1738288330303,3.06106,3266.9,3266.1,3.06171]
[1738288330582,3.0612,3266.7,3266.5,1.03033336]
[1738288330751,0.0609972,3266.6,3266.5,1.03033336]
[1738288330955,0.0609972,3266.6,3266.5,2.34585154]
[1738288331549,3.89294,3267.1,3266.5,2.34585154]
[1738288331746,0.06106899,3267.0,3266.5,3.11245154]
[1738288332390,0.06106899,3267.0,3266.6,1.03033336]
[1738288332699,3.12199899,3267.0,3266.6,2.34585154]
[1738288333944,0.06106899,3267.0,3266.7,0.45792594]
[1738288334478,3.12197899,3267.0,3266.7,1.20147969]
[1738288335760,0.06106899,3267.0,3266.8,0.45792594]
[1738288337106,0.06106899,3267.0,3266.9,0.45792594]
[1738288337469,0.06106899,3267.0,3266.9,0.74390815]
[1738288339577,0.06106899,3267.0,3266.9,1.20131852]
[1738288342361,3.12197899,3267.0,3266.9,1.20131852]
[1738288343318,0.06106899,3267.0,3266.9,1.20131852]
[1738288343879,0.06106899,3267.0,3266.9,4.26231852]
[1738288344285,3.88086,3267.6,3267.0,3.06086]
[1738288345724,3.88086,3267.6,3267.1,0.45760472]
[1738288346021,3.88086,3267.6,3267.1,1.2009973]
[1738288347449,3.06019,3267.8,3267.2,0.45760472]
[1738288347737,3.0,3267.7,3267.3,0.829]
[1738288348247,3.0,3267.7,3267.3,1.57239258]
[1738288348550,3.0,3267.7,3267.4,0.45760472]
[1738288349891,3.06038,3267.6,3267.5,0.28598221]
[1738288350097,3.0,3267.6,3267.5,0.28598221]
[1738288355743,6.06035,3267.6,3267.5,0.28598221]
[1738288355899,6.11958065,3267.6,3267.5,0.28598221]
[1738288356448,0.05923065,3267.6,3267.5,0.28598221]
[1738288356598,3.0,3268.1,3267.5,4.16962221]
[1738288356801,0.05937527,3268.0,3267.5,4.16962221]
[1738288357230,0.05937527,3268.0,3267.5,1.10918221]
[1738288357435,3.11935527,3268.0,3267.6,0.7433006]
[1738288357633,3.11935527,3268.0,3267.6,1.20055507]
[1738288358348,3.06025,3267.8,3267.6,1.20055507]
[1738288358744,3.11965229,3267.7,3267.6,1.20055507]
[1738288358951,3.11965229,3267.7,3267.6,0.7433006]
[1738288360050,0.05940229,3267.7,3267.6,0.7433006]
[1738288360353,3.06017,3267.8,3267.6,0.7433006]
[1738288360531,0.05940229,3267.7,3267.6,0.7433006]
[1738288360933,3.06017,3267.8,3267.6,1.20089089]
[1738288361134,0.05940229,3267.7,3267.6,1.20089089]
[1738288361444,3.06017,3267.8,3267.6,1.20089089]
[1738288361650,0.05940229,3267.7,3267.6,1.20089089]
[1738288361857,3.06017,3267.8,3267.6,1.20089089]
[1738288362022,0.05940229,3267.7,3267.6,1.20089089]
[1738288362206,3.06017,3267.8,3267.6,1.20089089]
[1738288362406,0.05940229,3267.7,3267.6,1.20089089]
[1738288362625,3.06017,3267.8,3267.6,1.20089089]
[1738288362804,0.05940229,3267.7,3267.6,1.20089089]
[1738288363052,3.06001,3268.0,3267.6,1.20089089]
[1738288363355,3.0,3268.2,3267.7,0.8186]
[1738288363862,3.0,3268.2,3267.7,1.5619006]
[1738288364220,6.05985,3268.2,3267.7,1.5619006]
[1738288365565,6.05985,3268.2,3267.8,1.20089089]
[1738288366062,3.05989,3268.1,3267.8,1.20089089]
[1738288367166,3.05989,3268.1,3267.9,0.7433006]
[1738288368979,6.05989,3268.1,3268.0,0.28598221]
[1738288370878,6.11939476,3268.1,3268.0,0.28598221]
[1738288373236,7.07556498,3268.1,3268.0,0.28598221]
[1738288373437,7.03731124,3268.1,3268.0,0.28598221]
[1738288374173,7.82071124,3268.1,3268.0,0.28598221]
[1738288376393,6.11939476,3268.1,3268.0,0.28598221]
[1738288379190,6.91279476,3268.1,3268.0,0.28598221]
[1738288380999,6.11939476,3268.1,3268.0,0.28598221]
[1738288385651,0.05950476,3268.1,3268.0,0.28598221]
[1738288385799,3.05977,3268.3,3268.0,1.09778221]
[1738288385994,0.0588488,3268.2,3268.0,1.09778221]
[1738288386262,3.05977,3268.3,3268.0,1.09778221]
[1738288386446,0.05885513,3268.2,3268.0,1.09778221]
[1738288386604,3.05979,3268.2,3268.1,0.45859949]
[1738288386801,3.11864814,3268.2,3268.1,0.45859949]
[1738288387952,3.11864814,3268.2,3268.1,1.20320385]
[1738288388755,3.90514814,3268.2,3268.1,1.20320385]
[1738288389232,3.11864814,3268.2,3268.1,1.20320385]
[1738288389419,3.11864814,3268.2,3268.1,0.74460436]
[1738288390420,0.05885814,3268.2,3268.1,0.74460436]
[1738288390841,6.0597,3268.3,3268.1,0.74460436]
[1738288391041,0.05896079,3268.2,3268.1,0.74460436]
[1738288391244,6.0597,3268.3,3268.1,0.74460436]
[1738288391410,0.05896079,3268.2,3268.1,0.74460436]
[1738288391609,6.0597,3268.3,3268.1,0.74460436]
[1738288391839,0.05896079,3268.2,3268.1,0.74460436]
[1738288392254,3.05978,3268.2,3268.1,0.74460436]
[1738288392423,3.11874079,3268.2,3268.1,0.74460436]
[1738288392953,0.05896079,3268.2,3268.1,0.74460436]
[1738288393321,3.0597,3268.3,3268.1,0.74460436]
[1738288393647,0.05896079,3268.2,3268.1,0.28598221]
[1738288393829,3.0597,3268.3,3268.1,0.28598221]
[1738288394039,0.05896079,3268.2,3268.1,0.28598221]
[1738288394241,3.0597,3268.3,3268.1,0.28598221]
[1738288394438,0.05896079,3268.2,3268.1,0.28598221]
[1738288394640,3.0597,3268.3,3268.1,0.28598221]
[1738288395158,3.92669362,3268.2,3268.1,0.28598221]
[1738288395853,3.92669362,3268.2,3267.5,0.67736889]
[1738288396058,3.06002,3268.0,3267.5,0.67736889]
[1738288396262,0.05874553,3267.9,3267.5,0.67736889]
[1738288396460,3.09827256,3268.0,3267.5,0.67736889]
[1738288396757,0.05874553,3267.9,3267.5,0.67736889]
[1738288397282,3.06002,3268.0,3267.6,0.74500891]
[1738288397415,0.05874553,3267.9,3267.6,0.74500891]
[1738288398569,0.05874553,3267.9,3267.7,0.74500891]
[1738288398778,3.06002,3268.0,3267.7,0.74500891]
[1738288399136,3.06016,3267.8,3267.7,0.74500891]
[1738288399348,3.86406,3267.8,3267.7,0.74500891]
[1738288399546,3.92280469,3267.8,3267.7,0.74500891]
[1738288400477,3.92280469,3267.8,3267.7,0.28654189]
[1738288401834,0.05874469,3267.8,3267.7,0.28654189]
[1738288402049,0.7783,3268.1,3267.7,0.28654189]
[1738288402285,0.05767587,3268.0,3267.7,0.28654189]
[1738288402573,0.05767587,3268.0,3267.8,0.28654189]
[1738288402934,3.05999,3268.0,3267.8,0.28654189]
[1738288403239,0.05766621,3267.9,3267.8,0.28654189]
[1738288404150,6.05996,3268.1,3267.8,0.28654189]
[1738288404351,0.057749,3267.9,3267.8,0.28654189]
[1738288404558,6.05996,3268.1,3267.8,0.28654189]
[1738288404756,0.057749,3267.9,3267.8,0.74459605]
[1738288404936,3.0,3268.1,3267.8,0.74459605]
[1738288405143,0.057749,3267.9,3267.8,3.80473605]
[1738288405348,3.05968,3268.4,3267.8,3.80473605]
[1738288405585,0.05773907,3267.9,3267.8,3.80473605]
[1738288405776,3.05968,3268.4,3267.8,3.80473605]
[1738288405978,0.05773907,3267.9,3267.8,3.80473605]
[1738288406188,3.05971,3268.3,3267.8,0.74459605]
[1738288406390,0.05773907,3267.9,3267.8,0.74459605]
[1738288406590,0.03825001,3268.2,3267.8,0.74459605]
[1738288406755,0.05773907,3267.9,3267.8,0.74459605]
[1738288406955,0.03825001,3268.2,3267.9,0.74459605]
[1738288407366,0.05775839,3268.1,3267.9,0.74459605]
[1738288407889,3.05971,3268.3,3267.9,0.74459605]
[1738288408095,0.05776805,3268.2,3267.9,0.74459605]
[1738288408253,3.05971,3268.3,3267.9,0.74459605]
[1738288408578,0.05776805,3268.2,3267.9,0.74459605]
[1738288409102,0.05775839,3268.1,3267.9,0.74459605]
[1738288409259,3.05968,3268.4,3267.9,0.74459605]
[1738288409594,0.05777771,3268.3,3268.0,0.74459605]
[1738288410960,0.05777771,3268.3,3268.1,0.74459605]
[1738288411794,0.05777771,3268.3,3268.1,1.57319605]
[1738288412713,0.05777771,3268.3,3268.2,0.28654189]
[1738288413007,3.11746771,3268.3,3268.2,0.28654189]
[1738288413314,3.50677875,3268.3,3268.2,0.28654189]
[1738288414407,4.34292826,3268.3,3268.2,0.28654189]
[1738288414710,4.30467875,3268.3,3268.2,0.28654189]
[1738288415207,7.30467875,3268.3,3268.2,0.28654189]
[1738288415507,4.24498875,3268.3,3267.5,0.7733]
[1738288415707,3.06005,3268.0,3267.5,0.7733]
[1738288415905,0.05782846,3267.9,3267.5,0.7733]
[1738288417207,0.05782846,3267.9,3267.6,0.74326024]
[1738288419010,0.05782846,3267.9,3267.7,0.74326024]
[1738288419192,3.92901441,3267.8,3267.7,0.74326024]
[1738288419506,3.98683321,3267.8,3267.7,0.74326024]
[1738288419667,3.9485788,3267.8,3267.7,0.74326024]
[1738288420725,3.06042,3267.6,3267.1,0.45739092]
[1738288421109,0.05783286,3267.5,3267.1,0.45739092]
[1738288422423,0.05783286,3267.5,3267.2,0.74345652]
[1738288422820,3.06016,3267.8,3267.2,0.74345652]
[1738288423186,0.05776939,3267.7,3267.2,3.80410652]
[1738288424024,0.05776939,3267.7,3267.3,0.74345652]
[1738288424424,3.06016,3267.8,3267.3,0.74345652]
[1738288424627,0.05775973,3267.6,3267.3,0.74345652]
[1738288424799,0.05776939,3267.7,3267.3,0.74345652]
[1738288424994,3.06016,3267.8,3267.3,0.74345652]
[1738288425326,0.05776939,3267.7,3267.3,0.74345652]
[1738288425624,0.05776939,3267.7,3267.4,0.2860656]
[1738288425800,3.06016,3267.8,3267.4,0.2860656]
[1738288426423,0.05776939,3267.7,3267.4,0.2860656]
[1738288426720,3.06016,3267.8,3267.4,0.2860656]
[1738288426900,0.05776939,3267.7,3267.4,0.2860656]
[1738288427097,3.0,3267.9,3267.5,0.2860656]
[1738288427284,0.05777906,3267.8,3267.5,1.0805656]
[1738288427833,5.35,3268.1,3267.6,3.06027]
[1738288428331,0.05773549,3268.0,3267.6,6.12054]
[1738288428997,0.05773549,3268.0,3267.7,0.2860656]
[1738288429242,0.05773549,3268.0,3267.7,3.3463056]
[1738288429447,0.05773549,3268.0,3267.9,0.7872]
[1738288430115,0.05780442,3268.0,3267.9,0.7872]
[1738288430406,3.05963,3268.4,3267.9,0.7872]
[1738288430612,5.35,3269.2,3267.9,3.84726]
[1738288430811,3.8728,3269.0,3268.4,0.7611]
[1738288431008,3.05592115,3268.9,3268.4,0.7611]
[1738288431214,3.09416505,3268.9,3268.4,0.7611]
[1738288431537,0.09416505,3268.9,3268.4,0.7611]
[1738288431737,3.05923,3268.8,3268.4,0.7611]
[1738288431946,0.03824437,3268.7,3268.4,0.7611]
[1738288432122,0.09002045,3268.7,3268.4,0.7611]
[1738288432620,0.05177608,3268.7,3268.4,3.82068]
[1738288432826,0.03824429,3268.8,3268.4,3.82068]
[1738288433201,0.05178813,3268.7,3268.4,3.82068]
[1738288433397,3.0,3268.9,3268.4,3.82068]
[1738288433739,0.05180081,3268.8,3268.4,3.82068]